[Event "Live Chess"]
[Site "Chess.com"]
[Date "2023.05.20"]
[Round "-"]
[White "omisoc"]
[Black "wot-not"]
[Result "1-0"]
[WhiteElo "2149"]
[BlackElo "1526"]
[TimeControl "300"]
[EndTime "15:32:42 PDT"]
[Termination "omisoc won by resignation"]

1. Nf3 {[%clk 0:04:56]} 1... Nf6 {[%clk 0:04:58.5]} 2. b3 {[%clk 0:04:54.5]}
2... d6 {[%clk 0:04:57.8]} 3. d4 {[%clk 0:04:52.1]} 3... Bg4 {[%clk 0:04:52.7]}
4. Bb2 {[%clk 0:04:48.4]} 4... Bxf3 {[%clk 0:04:45.5]} 5. exf3 {[%clk
0:04:48.3]} 5... Nbd7 {[%clk 0:04:43.4]} 6. f4 {[%clk 0:04:44.9]} 6... c5 {[%clk
0:04:40]} 7. dxc5 {[%clk 0:04:40.8]} 7... Nxc5 {[%clk 0:04:37.7]} 8. Bb5+ {[%clk
0:04:33]} 8... Ncd7 {[%clk 0:04:34.3]} 9. O-O {[%clk 0:04:31.7]} 9... a6 {[%clk
0:04:32.4]} 10. Be2 {[%clk 0:04:27.1]} 10... g6 {[%clk 0:04:31.1]} 11. c4 {[%clk
0:04:25.6]} 11... Bg7 {[%clk 0:04:30.3]} 12. Nc3 {[%clk 0:04:24.5]} 12... O-O
{[%clk 0:04:29.4]} 13. g3 {[%clk 0:04:23.6]} 13... Nc5 {[%clk 0:04:13.4]} 14.
Bf3 {[%clk 0:04:20.9]} 14... Rb8 {[%clk 0:03:58.5]} 15. Rc1 {[%clk 0:04:16.9]}
15... h5 {[%clk 0:03:56.6]} 16. Rc2 {[%clk 0:02:47.2]} 16... h4 {[%clk
0:03:43.4]} 17. g4 {[%clk 0:02:34.5]} 17... Qc8 {[%clk 0:03:34.7]} 18. h3 {[%clk
0:02:32.8]} 18... Nh7 {[%clk 0:03:04.1]} 19. Re1 {[%clk 0:02:27.2]} 19... e6
{[%clk 0:02:58.9]} 20. b4 {[%clk 0:02:16.1]} 20... Bxc3 {[%clk 0:02:49.5]} 21.
Rxc3 {[%clk 0:02:11.8]} 21... Na4 {[%clk 0:02:48.7]} 22. Qxa4 {[%clk 0:02:09.9]}
22... b5 {[%clk 0:02:45.9]} 23. cxb5 {[%clk 0:02:07.4]} 23... Qd7 {[%clk
0:02:38.2]} 24. Qxa6 {[%clk 0:02:00.9]} 24... d5 {[%clk 0:02:29.8]} 25. Rec1
{[%clk 0:01:54.3]} 25... Rxb5 {[%clk 0:02:28.3]} 26. Rc7 {[%clk 0:01:52.1]}
26... Qe8 {[%clk 0:02:26.2]} 27. a3 {[%clk 0:01:49.3]} 27... Rb8 {[%clk
0:02:25.1]} 28. Qc6 {[%clk 0:01:45.5]} 28... Qxc6 {[%clk 0:02:23.3]} 29. R1xc6
{[%clk 0:01:42.9]} 29... Nf6 {[%clk 0:02:19.8]} 30. Bxf6 {[%clk 0:01:40.5]} 1-0

[Event "Live Chess"]
[Site "Chess.com"]
[Date "2023.05.20"]
[Round "-"]
[White "inspireyou"]
[Black "f4nomore"]
[Result "0-1"]
[WhiteElo "1487"]
[BlackElo "1426"]
[TimeControl "300"]
[EndTime "15:32:49 PDT"]
[Termination "f4nomore won by resignation"]

1. b3 {[%clk 0:04:58.6]} 1... g6 {[%clk 0:04:59.9]} 2. Bb2 {[%clk 0:04:58.5]}
2... Bg7 {[%clk 0:04:58.8]} 3. Bxg7 {[%clk 0:04:57.1]} 3... Nf6 {[%clk
0:04:57.3]} 4. Bxh8 {[%clk 0:04:56.5]} 4... d6 {[%clk 0:04:55.9]} 5. Bxf6 {[%clk
0:04:55.6]} 5... exf6 {[%clk 0:04:54.6]} 6. d4 {[%clk 0:04:54.2]} 6... Be6
{[%clk 0:04:52.7]} 7. Nf3 {[%clk 0:04:53.2]} 7... Nd7 {[%clk 0:04:50.6]} 8. e3
{[%clk 0:04:52.1]} 8... Nb6 {[%clk 0:04:49.4]} 9. Bd3 {[%clk 0:04:51.4]} 9...
Qd7 {[%clk 0:04:47.6]} 10. a4 {[%clk 0:04:50.9]} 10... O-O-O {[%clk 0:04:45.7]}
11. a5 {[%clk 0:04:50.4]} 11... Nd5 {[%clk 0:04:43]} 12. Qe2 {[%clk 0:04:49.5]}
12... h6 {[%clk 0:04:32.1]} 13. Ra4 {[%clk 0:04:38.6]} 13... g5 {[%clk
0:04:14.2]} 14. c4 {[%clk 0:04:34.1]} 14... Ne7 {[%clk 0:04:02.3]} 15. Qd2
{[%clk 0:04:28.1]} 15... g4 {[%clk 0:03:59.7]} 16. Ng1 {[%clk 0:04:24.4]} 16...
h5 {[%clk 0:03:52.3]} 17. c5 {[%clk 0:04:09.9]} 17... dxc5 {[%clk 0:03:47.2]}
18. a6 {[%clk 0:04:09.8]} 18... cxd4 {[%clk 0:03:32.7]} 19. axb7+ {[%clk
0:04:06.8]} 19... Kb8 {[%clk 0:03:28.7]} 20. Qa5 {[%clk 0:04:04.5]} 20... Nc6
{[%clk 0:03:16.6]} 21. Qb5 {[%clk 0:03:18.4]} 21... dxe3 {[%clk 0:03:04.8]} 22.
Be4 {[%clk 0:03:08.6]} 0-1

[Event "Live Chess"]
[Site "Chess.com"]
[Date "2023.05.20"]
[Round "-"]
[White "Cimon"]
[Black "miguelchuk"]
[Result "1-0"]
[WhiteElo "1835"]
[BlackElo "1595"]
[TimeControl "300"]
[EndTime "15:33:02 PDT"]
[Termination "Cimon won by resignation"]

1. Nf3 {[%clk 0:04:57.4]} 1... d5 {[%clk 0:04:57.3]} 2. d4 {[%clk 0:04:55.8]}
2... Nf6 {[%clk 0:04:53.3]} 3. c4 {[%clk 0:04:53.2]} 3... e6 {[%clk 0:04:49.8]}
4. Nc3 {[%clk 0:04:50.7]} 4... Bb4 {[%clk 0:04:48.2]} 5. e3 {[%clk 0:04:48.1]}
5... O-O {[%clk 0:04:40.9]} 6. Bd3 {[%clk 0:04:29.2]} 6... dxc4 {[%clk 0:04:24]}
7. Bxc4 {[%clk 0:04:24.2]} 7... a6 {[%clk 0:04:20.6]} 8. O-O {[%clk 0:04:21.6]}
8... b5 {[%clk 0:04:18.4]} 9. Bd3 {[%clk 0:04:18.8]} 9... Bb7 {[%clk 0:04:14.8]}
10. Re1 {[%clk 0:04:09.3]} 10... Nbd7 {[%clk 0:04:03.5]} 11. e4 {[%clk
0:04:00.6]} 11... c5 {[%clk 0:03:46.7]} 12. dxc5 {[%clk 0:03:57.5]} 12... Nxc5
{[%clk 0:03:37.2]} 13. Bc2 {[%clk 0:03:28.8]} 13... Bxc3 {[%clk 0:03:29.5]} 14.
bxc3 {[%clk 0:03:26.2]} 14... Bxe4 {[%clk 0:03:20.7]} 15. Qe2 {[%clk 0:03:11.8]}
15... Qd5 {[%clk 0:03:07.5]} 16. Ba3 {[%clk 0:03:01.5]} 16... Bxf3 {[%clk
0:02:54.1]} 17. gxf3 {[%clk 0:02:51]} 17... Rfc8 {[%clk 0:02:37.2]} 18. Rad1
{[%clk 0:02:42.4]} 18... Qg5+ {[%clk 0:02:31]} 19. Kh1 {[%clk 0:02:32.4]} 19...
Nd5 {[%clk 0:02:19.1]} 20. Rg1 {[%clk 0:02:25.5]} 20... Qh6 {[%clk 0:02:06.1]}
21. Bc1 {[%clk 0:02:19.9]} 21... Nf4 {[%clk 0:01:34.6]} 22. Qd2 {[%clk
0:02:06.7]} 22... e5 {[%clk 0:01:25.6]} 23. Qd6 {[%clk 0:01:57]} 23... Qxd6
{[%clk 0:01:18.2]} 24. Rxd6 {[%clk 0:01:55.2]} 24... Nce6 {[%clk 0:01:09.2]} 25.
Bb2 {[%clk 0:01:48.1]} 25... h6 {[%clk 0:00:57.4]} 26. Be4 {[%clk 0:01:46]}
26... Rab8 {[%clk 0:00:46.6]} 27. Rxa6 {[%clk 0:01:41.2]} 27... Nc5 {[%clk
0:00:29]} 28. Rd6 {[%clk 0:01:35]} 28... Nxe4 {[%clk 0:00:23.9]} 29. fxe4 {[%clk
0:01:33.9]} 29... Rc4 {[%clk 0:00:19.8]} 30. f3 {[%clk 0:01:31.1]} 30... b4
{[%clk 0:00:16.7]} 31. cxb4 {[%clk 0:01:28.9]} 31... Rbxb4 {[%clk 0:00:13.9]}
32. Bxe5 {[%clk 0:01:27.2]} 32... Ne2 {[%clk 0:00:08.8]} 33. Rd8+ {[%clk
0:01:24.4]} 1-0

[Event "Live Chess"]
[Site "Chess.com"]
[Date "2023.05.20"]
[Round "-"]
[White "LiamClery2020"]
[Black "ShanthamGrarks"]
[Result "0-1"]
[WhiteElo "2061"]
[BlackElo "1982"]
[TimeControl "300"]
[EndTime "15:33:07 PDT"]
[Termination "ShanthamGrarks won by resignation"]

1. e4 {[%clk 0:04:59.6]} 1... e6 {[%clk 0:04:51.5]} 2. d4 {[%clk 0:04:57]} 2...
d5 {[%clk 0:04:49.2]} 3. Nd2 {[%clk 0:04:55.5]} 3... Nf6 {[%clk 0:04:44.2]} 4.
e5 {[%clk 0:04:51.1]} 4... Nfd7 {[%clk 0:04:42.8]} 5. Ngf3 {[%clk 0:04:50.5]}
5... c5 {[%clk 0:04:41.3]} 6. c3 {[%clk 0:04:50.1]} 6... Nc6 {[%clk 0:04:40.7]}
7. Bd3 {[%clk 0:04:49.3]} 7... cxd4 {[%clk 0:04:40.3]} 8. cxd4 {[%clk
0:04:48.1]} 8... Qb6 {[%clk 0:04:39.8]} 9. O-O {[%clk 0:04:47.5]} 9... Nxd4
{[%clk 0:04:38.1]} 10. Nxd4 {[%clk 0:04:46.8]} 10... Qxd4 {[%clk 0:04:36.8]} 11.
Nf3 {[%clk 0:04:46.4]} 11... Qb6 {[%clk 0:04:33.1]} 12. Qc2 {[%clk 0:04:43.9]}
12... h6 {[%clk 0:04:30.1]} 13. Be3 {[%clk 0:04:40.8]} 13... Bc5 {[%clk
0:04:28.9]} 14. Rac1 {[%clk 0:04:37.8]} 14... Bxe3 {[%clk 0:04:25.2]} 15. Qxc8+
{[%clk 0:04:34.2]} 15... Rxc8 {[%clk 0:04:23.5]} 16. Rxc8+ {[%clk 0:04:34.1]}
16... Ke7 {[%clk 0:04:22.6]} 17. Rxh8 {[%clk 0:04:34]} 17... Bd4 {[%clk
0:04:11.1]} 18. Rc1 {[%clk 0:04:13.5]} 18... Bxf2+ {[%clk 0:04:05.5]} 19. Kh1
{[%clk 0:04:12.4]} 19... Bd4 {[%clk 0:03:59.8]} 20. b3 {[%clk 0:03:55.7]} 20...
Nxe5 {[%clk 0:03:49.5]} 21. Nxd4 {[%clk 0:03:54.5]} 21... Qxd4 {[%clk 0:03:46]}
22. Bb5 {[%clk 0:03:53.5]} 22... Ng4 {[%clk 0:03:40.7]} 23. Re8+ {[%clk
0:03:48.9]} 23... Kf6 {[%clk 0:03:39.5]} 24. Rf1+ {[%clk 0:03:47.6]} 24... Kg6
{[%clk 0:03:38.7]} 25. h3 {[%clk 0:03:36.7]} 25... Nf2+ {[%clk 0:03:30.4]} 26.
Kh2 {[%clk 0:03:35.4]} 26... h5 {[%clk 0:03:13.4]} 27. Rc8 {[%clk 0:03:20.8]}
27... h4 {[%clk 0:03:10.6]} 28. Rc2 {[%clk 0:03:16]} 28... Qe5+ {[%clk
0:03:06.1]} 29. Kg1 {[%clk 0:03:14.3]} 29... Ne4 {[%clk 0:02:58.9]} 30. Re2
{[%clk 0:03:11.5]} 30... Qd4+ {[%clk 0:02:56.2]} 31. Kh2 {[%clk 0:03:10.3]}
31... Ng3 {[%clk 0:02:53.1]} 32. Rxe6+ {[%clk 0:03:03.1]} 32... fxe6 {[%clk
0:02:49.6]} 33. Be8+ {[%clk 0:03:03]} 33... Kh6 {[%clk 0:02:45.2]} 0-1

[Event "Live Chess"]
[Site "Chess.com"]
[Date "2023.05.20"]
[Round "-"]
[White "Biranidun"]
[Black "risinghelios"]
[Result "1-0"]
[WhiteElo "2726"]
[BlackElo "1906"]
[TimeControl "300"]
[EndTime "15:33:15 PDT"]
[Termination "Biranidun won by resignation"]

1. e4 {[%clk 0:04:58.1]} 1... c5 {[%clk 0:04:59.1]} 2. Nf3 {[%clk 0:04:57.2]}
2... Nc6 {[%clk 0:04:58.5]} 3. d4 {[%clk 0:04:54.3]} 3... cxd4 {[%clk
0:04:58.4]} 4. Nxd4 {[%clk 0:04:53.7]} 4... d5 {[%clk 0:04:58.3]} 5. Bb5 {[%clk
0:04:51.1]} 5... Bd7 {[%clk 0:04:42]} 6. exd5 {[%clk 0:04:48.2]} 6... Nxd4
{[%clk 0:04:41.1]} 7. Bxd7+ {[%clk 0:04:47.1]} 7... Qxd7 {[%clk 0:04:41]} 8.
Qxd4 {[%clk 0:04:46.7]} 8... Nf6 {[%clk 0:04:40.3]} 9. Nc3 {[%clk 0:04:45.8]}
9... g6 {[%clk 0:04:38.9]} 10. Bg5 {[%clk 0:04:39.1]} 10... Bg7 {[%clk
0:04:37.6]} 11. O-O-O {[%clk 0:04:38.5]} 11... O-O {[%clk 0:04:36.2]} 12. Rhe1
{[%clk 0:04:17.7]} 12... Qf5 {[%clk 0:04:34.1]} 13. Bxf6 {[%clk 0:04:15.3]}
13... Bxf6 {[%clk 0:04:32.1]} 14. Qd3 {[%clk 0:04:11]} 14... Qg5+ {[%clk
0:04:29.7]} 15. Kb1 {[%clk 0:04:09.8]} 15... Rac8 {[%clk 0:04:28.5]} 16. Ne4
{[%clk 0:04:08.8]} 16... Qf5 {[%clk 0:04:25.2]} 17. Nxf6+ {[%clk 0:04:04.8]}
17... Qxf6 {[%clk 0:04:25.1]} 18. f3 {[%clk 0:04:02.6]} 18... Rfd8 {[%clk
0:04:23.1]} 19. Qd4 {[%clk 0:03:59]} 19... Qxd4 {[%clk 0:04:18.4]} 20. Rxd4
{[%clk 0:03:58.9]} 20... e6 {[%clk 0:04:14.5]} 21. Red1 {[%clk 0:03:57.1]} 21...
exd5 {[%clk 0:04:11.9]} 22. Rxd5 {[%clk 0:03:57]} 22... Re8 {[%clk 0:04:09.4]}
23. b3 {[%clk 0:03:53.7]} 23... Re2 {[%clk 0:04:08]} 24. R1d2 {[%clk 0:03:53.3]}
24... Rce8 {[%clk 0:03:52.6]} 25. Kb2 {[%clk 0:03:52]} 25... b6 {[%clk
0:03:41.8]} 26. a4 {[%clk 0:03:50.7]} 26... a5 {[%clk 0:03:39.6]} 27. Rd6 {[%clk
0:03:39.6]} 27... R8e6 {[%clk 0:03:30.7]} 28. Rxe2 {[%clk 0:03:36.1]} 28... Rxe2
{[%clk 0:03:29.8]} 29. Rxb6 {[%clk 0:03:34.9]} 29... Rxg2 {[%clk 0:03:29.2]} 30.
b4 {[%clk 0:03:34.1]} 30... axb4 {[%clk 0:03:27.1]} 31. a5 {[%clk 0:03:33.5]}
31... Rxh2 {[%clk 0:03:19.1]} 32. a6 {[%clk 0:03:32.8]} 32... Rh5 {[%clk
0:03:18.7]} 33. a7 {[%clk 0:03:31.5]} 33... Ra5 {[%clk 0:03:17.9]} 34. Rb8+
{[%clk 0:03:31]} 34... Kg7 {[%clk 0:03:17.6]} 35. a8=Q {[%clk 0:03:30.9]} 35...
Rxa8 {[%clk 0:03:17]} 36. Rxa8 {[%clk 0:03:30.8]} 36... h5 {[%clk 0:03:16.4]}
37. Kb3 {[%clk 0:03:30.4]} 37... h4 {[%clk 0:03:15.6]} 38. Kxb4 {[%clk
0:03:29.7]} 38... g5 {[%clk 0:03:14]} 39. c4 {[%clk 0:03:28.8]} 39... f5 {[%clk
0:03:13.6]} 40. c5 {[%clk 0:03:24.4]} 40... g4 {[%clk 0:03:11.9]} 41. fxg4
{[%clk 0:03:24.3]} 41... fxg4 {[%clk 0:03:10.6]} 42. c6 {[%clk 0:03:22.8]} 1-0

[Event "Live Chess"]
[Site "Chess.com"]
[Date "2023.05.20"]
[Round "-"]
[White "smoggyrabbit"]
[Black "AlanPaling"]
[Result "1-0"]
[WhiteElo "1694"]
[BlackElo "1217"]
[TimeControl "300"]
[EndTime "15:33:21 PDT"]
[Termination "smoggyrabbit won by checkmate"]

1. d4 {[%clk 0:04:59.6]} 1... e5 {[%clk 0:04:58.7]} 2. dxe5 {[%clk 0:04:57.6]}
2... Nc6 {[%clk 0:04:58]} 3. Nf3 {[%clk 0:04:56.8]} 3... Qe7 {[%clk 0:04:57.5]}
4. Nc3 {[%clk 0:04:54.7]} 4... Nxe5 {[%clk 0:04:54.5]} 5. e4 {[%clk 0:04:53.8]}
5... Nxf3+ {[%clk 0:04:48.6]} 6. Qxf3 {[%clk 0:04:52.3]} 6... d6 {[%clk
0:04:45.8]} 7. Bc4 {[%clk 0:04:46.5]} 7... Be6 {[%clk 0:04:42.1]} 8. Bxe6 {[%clk
0:04:29.8]} 8... Qxe6 {[%clk 0:04:39.9]} 9. O-O {[%clk 0:04:27.9]} 9... O-O-O
{[%clk 0:04:38]} 10. Be3 {[%clk 0:04:20.6]} 10... Kb8 {[%clk 0:04:35.3]} 11. a4
{[%clk 0:04:11.1]} 11... Ne7 {[%clk 0:04:32.3]} 12. a5 {[%clk 0:04:07.3]} 12...
a6 {[%clk 0:04:30.1]} 13. Nd5 {[%clk 0:04:00.1]} 13... Nc6 {[%clk 0:04:25]} 14.
b4 {[%clk 0:03:42.1]} 14... Ne5 {[%clk 0:04:23.3]} 15. Qe2 {[%clk 0:03:36.1]}
15... c6 {[%clk 0:04:20.1]} 16. Nb6 {[%clk 0:03:22.7]} 16... Nd7 {[%clk
0:04:18.8]} 17. c4 {[%clk 0:03:19.7]} 17... Nxb6 {[%clk 0:04:14.8]} 18. Bxb6
{[%clk 0:03:18.7]} 18... Rd7 {[%clk 0:04:13.3]} 19. b5 {[%clk 0:03:13.9]} 19...
cxb5 {[%clk 0:04:02.2]} 20. cxb5 {[%clk 0:03:13.8]} 20... axb5 {[%clk
0:03:56.8]} 21. Qxb5 {[%clk 0:03:12.6]} 21... Qe5 {[%clk 0:03:55.6]} 22. Qxd7
{[%clk 0:03:10.2]} 22... Be7 {[%clk 0:03:46.8]} 23. a6 {[%clk 0:03:04.2]} 23...
Qe6 {[%clk 0:03:37]} 24. Qxb7# {[%clk 0:03:02.7]} 1-0

[Event "Live Chess"]
[Site "Chess.com"]
[Date "2023.05.20"]
[Round "-"]
[White "xx_blindpuffin_xx"]
[Black "Conradical12"]
[Result "1-0"]
[WhiteElo "2212"]
[BlackElo "1607"]
[TimeControl "300"]
[EndTime "15:33:53 PDT"]
[Termination "xx_blindpuffin_xx won by checkmate"]

1. d4 {[%clk 0:04:58.3]} 1... Nf6 {[%clk 0:04:57.1]} 2. Nf3 {[%clk 0:04:57.5]}
2... c5 {[%clk 0:04:53.1]} 3. dxc5 {[%clk 0:04:55.7]} 3... Nc6 {[%clk
0:04:52.5]} 4. g3 {[%clk 0:04:55.1]} 4... e5 {[%clk 0:04:51.3]} 5. Bg2 {[%clk
0:04:50]} 5... Bxc5 {[%clk 0:04:48.1]} 6. O-O {[%clk 0:04:49]} 6... O-O {[%clk
0:04:46]} 7. c4 {[%clk 0:04:47.9]} 7... h6 {[%clk 0:04:40.7]} 8. Nc3 {[%clk
0:04:46.3]} 8... e4 {[%clk 0:04:39]} 9. Ne1 {[%clk 0:04:43.1]} 9... Re8 {[%clk
0:04:37.2]} 10. Nc2 {[%clk 0:04:41.4]} 10... Qb6 {[%clk 0:04:22.2]} 11. Na4
{[%clk 0:04:38.2]} 11... Qa5 {[%clk 0:04:19.1]} 12. Nxc5 {[%clk 0:04:36]} 12...
Qxc5 {[%clk 0:04:17.7]} 13. b3 {[%clk 0:04:35.3]} 13... Qe5 {[%clk 0:04:15.9]}
14. Rb1 {[%clk 0:04:27.8]} 14... d5 {[%clk 0:04:01.2]} 15. Bb2 {[%clk
0:04:18.8]} 15... Qe6 {[%clk 0:03:53.3]} 16. cxd5 {[%clk 0:04:02.8]} 16... Nxd5
{[%clk 0:03:49]} 17. Nd4 {[%clk 0:04:01.1]} 17... Nxd4 {[%clk 0:03:46.2]} 18.
Qxd4 {[%clk 0:04:01]} 18... Bd7 {[%clk 0:03:38.8]} 19. Qxg7# {[%clk 0:03:55.6]}
1-0

[Event "Live Chess"]
[Site "Chess.com"]
[Date "2023.05.20"]
[Round "-"]
[White "HoarseyHorsey"]
[Black "Tushinskiy"]
[Result "0-1"]
[WhiteElo "1440"]
[BlackElo "2155"]
[TimeControl "300"]
[EndTime "15:34:01 PDT"]
[Termination "Tushinskiy won by checkmate"]

1. d4 {[%clk 0:04:59.5]} 1... d5 {[%clk 0:04:52]} 2. c4 {[%clk 0:04:58.2]} 2...
c6 {[%clk 0:04:51.9]} 3. cxd5 {[%clk 0:04:56.8]} 3... cxd5 {[%clk 0:04:50.1]} 4.
Bf4 {[%clk 0:04:56.5]} 4... e6 {[%clk 0:04:40.3]} 5. e3 {[%clk 0:04:55.1]} 5...
Nf6 {[%clk 0:04:34.4]} 6. Nf3 {[%clk 0:04:53.4]} 6... Bd6 {[%clk 0:04:33.6]} 7.
Bg5 {[%clk 0:04:51.3]} 7... Nc6 {[%clk 0:04:31.5]} 8. Nc3 {[%clk 0:04:48.9]}
8... a6 {[%clk 0:04:30.8]} 9. Bd3 {[%clk 0:04:40.9]} 9... b5 {[%clk 0:04:29.8]}
10. O-O {[%clk 0:04:39.4]} 10... Bb7 {[%clk 0:04:29]} 11. Re1 {[%clk 0:04:35]}
11... Be7 {[%clk 0:04:25.7]} 12. Ne2 {[%clk 0:04:21.9]} 12... O-O {[%clk
0:04:21.8]} 13. Ng3 {[%clk 0:04:19]} 13... Rc8 {[%clk 0:04:20.3]} 14. Rc1 {[%clk
0:04:17.4]} 14... Nb4 {[%clk 0:04:11.7]} 15. Bb1 {[%clk 0:04:15.7]} 15... Rxc1
{[%clk 0:04:07.1]} 16. Qxc1 {[%clk 0:04:15.6]} 16... Ne4 {[%clk 0:04:05.7]} 17.
Bxe7 {[%clk 0:04:13.1]} 17... Qxe7 {[%clk 0:04:04.5]} 18. Nxe4 {[%clk
0:04:11.4]} 18... dxe4 {[%clk 0:04:02.9]} 19. Nd2 {[%clk 0:04:00.6]} 19... Rc8
{[%clk 0:04:01.2]} 20. Qd1 {[%clk 0:03:53.3]} 20... f5 {[%clk 0:03:57.5]} 21.
Nb3 {[%clk 0:03:46.3]} 21... Bd5 {[%clk 0:03:49.3]} 22. a3 {[%clk 0:03:40.6]}
22... Nd3 {[%clk 0:03:37]} 23. Bxd3 {[%clk 0:03:37.1]} 23... exd3 {[%clk
0:03:36.9]} 24. Qxd3 {[%clk 0:03:34.8]} 24... Qg5 {[%clk 0:03:35.3]} 25. f3
{[%clk 0:03:27.4]} 25... Bxf3 {[%clk 0:03:33.2]} 26. Qd2 {[%clk 0:03:22.5]}
26... Bd5 {[%clk 0:03:24.6]} 27. Nc5 {[%clk 0:03:21.3]} 27... h6 {[%clk
0:03:17.2]} 28. Re2 {[%clk 0:03:00]} 28... Qg4 {[%clk 0:03:07.2]} 29. Rf2 {[%clk
0:02:46.9]} 29... Rc7 {[%clk 0:02:55]} 30. Qa5 {[%clk 0:02:30.8]} 30... Qd1+
{[%clk 0:02:46.6]} 31. Rf1 {[%clk 0:02:26.4]} 31... Qc2 {[%clk 0:02:34.8]} 32.
Qxc7 {[%clk 0:02:12.9]} 32... Qxg2# {[%clk 0:02:33.2]} 0-1

[Event "Live Chess"]
[Site "Chess.com"]
[Date "2023.05.20"]
[Round "-"]
[White "Ed_Knox"]
[Black "Man-Del-Brot"]
[Result "1-0"]
[WhiteElo "1471"]
[BlackElo "1092"]
[TimeControl "300"]
[EndTime "15:34:02 PDT"]
[Termination "Ed_Knox won by checkmate"]

1. d4 {[%clk 0:04:56.9]} 1... Nf6 {[%clk 0:04:58]} 2. Bf4 {[%clk 0:04:56.1]}
2... d5 {[%clk 0:04:55.4]} 3. e3 {[%clk 0:04:54.7]} 3... Nbd7 {[%clk 0:04:54.2]}
4. Nf3 {[%clk 0:04:51.9]} 4... h6 {[%clk 0:04:53.3]} 5. Nc3 {[%clk 0:04:47.3]}
5... g5 {[%clk 0:04:52.1]} 6. Bg3 {[%clk 0:04:45.2]} 6... Nh5 {[%clk 0:04:50.9]}
7. Be5 {[%clk 0:04:30.6]} 7... f6 {[%clk 0:04:47.5]} 8. Nd2 {[%clk 0:04:09.3]}
8... Ng7 {[%clk 0:04:41.6]} 9. Bg3 {[%clk 0:04:06.3]} 9... c6 {[%clk 0:04:35.2]}
10. Be2 {[%clk 0:04:04.5]} 10... Nf5 {[%clk 0:04:14.9]} 11. Bh5# {[%clk
0:04:00.2]} 1-0

[Event "Live Chess"]
[Site "Chess.com"]
[Date "2023.05.20"]
[Round "-"]
[White "manthanit"]
[Black "CeladonFish"]
[Result "1-0"]
[WhiteElo "1033"]
[BlackElo "1141"]
[TimeControl "300"]
[EndTime "15:34:03 PDT"]
[Termination "manthanit won by resignation"]

1. e4 {[%clk 0:04:59.3]} 1... d6 {[%clk 0:04:59.5]} 2. Nf3 {[%clk 0:04:58.1]}
2... Nf6 {[%clk 0:04:59]} 3. Nc3 {[%clk 0:04:55.1]} 3... g6 {[%clk 0:04:57.7]}
4. d4 {[%clk 0:04:53.7]} 4... Bg7 {[%clk 0:04:56.8]} 5. Bd3 {[%clk 0:04:53.1]}
5... O-O {[%clk 0:04:56.1]} 6. Be3 {[%clk 0:04:52.6]} 6... c6 {[%clk 0:04:50.7]}
7. h3 {[%clk 0:04:51.8]} 7... b5 {[%clk 0:04:43.5]} 8. a3 {[%clk 0:04:50.9]}
8... a5 {[%clk 0:04:41.3]} 9. O-O {[%clk 0:04:48.2]} 9... Ba6 {[%clk 0:04:40.1]}
10. Re1 {[%clk 0:04:45.6]} 10... b4 {[%clk 0:04:39.2]} 11. Ne2 {[%clk
0:04:37.9]} 11... Bxd3 {[%clk 0:04:37.2]} 12. Qxd3 {[%clk 0:04:37]} 12... bxa3
{[%clk 0:04:36]} 13. bxa3 {[%clk 0:04:35.5]} 13... c5 {[%clk 0:04:29.4]} 14.
Rab1 {[%clk 0:04:32.8]} 14... cxd4 {[%clk 0:04:27.2]} 15. Nexd4 {[%clk
0:04:31.3]} 15... Nbd7 {[%clk 0:04:25.2]} 16. c4 {[%clk 0:04:29.6]} 16... Nc5
{[%clk 0:04:20.1]} 17. Qd2 {[%clk 0:04:11.8]} 17... Nfxe4 {[%clk 0:04:18]} 18.
Qc2 {[%clk 0:03:01.4]} 18... Rb8 {[%clk 0:03:59.5]} 19. Nb3 {[%clk 0:02:47]}
19... Nxb3 {[%clk 0:03:45.5]} 20. Rxb3 {[%clk 0:02:45.7]} 20... Rxb3 {[%clk
0:03:39.8]} 21. Qxb3 {[%clk 0:02:44.8]} 21... Nc5 {[%clk 0:03:37.8]} 22. Bxc5
{[%clk 0:02:38.9]} 22... dxc5 {[%clk 0:03:36.9]} 23. Qb5 {[%clk 0:02:37.9]}
23... Qc7 {[%clk 0:03:33.2]} 24. Nd2 {[%clk 0:02:29.2]} 24... Rd8 {[%clk
0:03:31.8]} 25. Nb3 {[%clk 0:02:26.4]} 25... Bc3 {[%clk 0:03:29.3]} 26. Rxe7
{[%clk 0:02:11.5]} 26... Qxe7 {[%clk 0:03:25.2]} 27. Nxa5 {[%clk 0:01:57.2]}
27... Bxa5 {[%clk 0:03:23.1]} 28. Qxa5 {[%clk 0:01:56.3]} 28... Qe4 {[%clk
0:03:18.3]} 29. Qxd8+ {[%clk 0:01:50.2]} 29... Kg7 {[%clk 0:03:17.5]} 1-0

[Event "Live Chess"]
[Site "Chess.com"]
[Date "2023.05.20"]
[Round "-"]
[White "Ferrarifan27"]
[Black "JackCheetham1"]
[Result "1-0"]
[WhiteElo "2071"]
[BlackElo "1692"]
[TimeControl "300"]
[EndTime "15:34:05 PDT"]
[Termination "Ferrarifan27 won by resignation"]

1. e4 {[%clk 0:04:58.6]} 1... c5 {[%clk 0:04:58.5]} 2. Nf3 {[%clk 0:04:57.3]}
2... d6 {[%clk 0:04:57.6]} 3. d4 {[%clk 0:04:56.4]} 3... cxd4 {[%clk 0:04:57.5]}
4. Nxd4 {[%clk 0:04:55.8]} 4... Nf6 {[%clk 0:04:57]} 5. Nc3 {[%clk 0:04:54.5]}
5... g6 {[%clk 0:04:56.1]} 6. Nd5 {[%clk 0:04:53.4]} 6... Nxe4 {[%clk
0:04:36.9]} 7. Nb5 {[%clk 0:04:51.2]} 7... Qa5+ {[%clk 0:04:33]} 8. b4 {[%clk
0:04:46.2]} 8... Qd8 {[%clk 0:03:50.4]} 9. Nbc7+ {[%clk 0:04:41.8]} 9... Kd7
{[%clk 0:03:49.9]} 10. Nxa8 {[%clk 0:04:40.5]} 10... Bg7 {[%clk 0:03:36.8]} 11.
Rb1 {[%clk 0:04:37.8]} 11... e6 {[%clk 0:03:29.1]} 12. Bb5+ {[%clk 0:04:35.6]}
12... Nc6 {[%clk 0:03:24.7]} 13. c4 {[%clk 0:03:35.4]} 13... Qh4 {[%clk
0:02:35.7]} 14. Be3 {[%clk 0:03:12.5]} 14... Kd8 {[%clk 0:02:12.8]} 15. Nf4
{[%clk 0:02:53.1]} 15... Nc3 {[%clk 0:01:57.9]} 16. Qxd6+ {[%clk 0:02:50.1]}
16... Bd7 {[%clk 0:01:49.1]} 17. Bxa7 {[%clk 0:02:37]} 17... Be5 {[%clk
0:01:19.5]} 18. Bb6+ {[%clk 0:02:32.7]} 18... Ke8 {[%clk 0:01:14.4]} 19. Nc7+
{[%clk 0:02:30.7]} 19... Kd8 {[%clk 0:01:07.4]} 20. Na6+ {[%clk 0:02:16.4]}
20... Ke8 {[%clk 0:01:02.6]} 21. Nc7+ {[%clk 0:01:59.7]} 21... Kd8 {[%clk
0:00:58.8]} 22. Ncxe6+ {[%clk 0:01:58.4]} 22... Ke8 {[%clk 0:00:53.9]} 23. Ng7+
{[%clk 0:01:37.8]} 23... Bxg7 {[%clk 0:00:47.7]} 24. Bxc6 {[%clk 0:01:33.8]}
24... bxc6 {[%clk 0:00:37.1]} 25. O-O {[%clk 0:01:31.2]} 25... Ne4 {[%clk
0:00:25.6]} 26. Rfe1 {[%clk 0:01:23.8]} 26... Qxf2+ {[%clk 0:00:24.2]} 27. Bxf2
{[%clk 0:01:22.1]} 1-0